[Event "DVM U10 2024"]
[Site "Duesseldorf"]
[Date "2024.12.29"]
[Round "7"]
[White "Kutschenreuter, Leo"]
[Black "Mettenbrink, Tammo"]
[Result "0-1"]
[ECO "C47"]
[WhiteElo "1085"]
[BlackElo "1029"]
[Annotator "NA"]
[PlyCount "124"]
[EventDate "2024.12.23"]
[EventType "team-tourn"]
[EventRounds "7"]
[EventCountry "GER"]
[SourceTitle "playchess.com"]
[Source "ChessBase"]
[SourceQuality "1"]
[TimeControl "3300+5"]

1. e4 {[%emt 0:00:39]} e5 {[%emt 0:00:04]} 2. Nf3 {[%emt 0:00:07]} Nc6 {[%emt 0:00:14]} 3. Nc3 {[%emt 0:00:09]} Nf6 {[%emt 0:00:10]} 4. a3 {[%emt 0:00:22]} d5 {[%emt 0:00:11]} 5. d3 {[%emt 0:03:38]} Bg4 {[%emt 0:00:41]} 6. Be2 {[%emt 0:01:21]} Bc5 {[%emt 0:00:55]} 7. Bg5 {[%emt 0:01:31]} O-O {[%emt 0:00:25]} 8. exd5 {[%emt 0:00:28]} Bxf3 {[%emt 0:00:47]} 9. Bxf3 {[%emt 0:00:57]} Nd4 {[%emt 0:00:45]} 10. Qd2 {[%emt 0:02:48]} Qd7 {[%emt 0:01:22]} 11. Bxf6 {[%emt 0:00:56]} gxf6 {[%emt 0:02:40]} 12. O-O-O {[%emt 0:00:57]} Qe7 {[%emt 0:00:47]} 13. h4 {[%emt 0:02:27]} b5 {[%emt 0:02:10]} 14. Rdf1 {[%emt 0:01:16]} b4 {[%emt 0:02:53]} 15. axb4 {[%emt 0:02:58]} Bxb4 {[%emt 0:00:24]} 16. Qh6 {[%emt 0:00:13]} Nf5 {[%emt 0:05:53]} 17. Qh5 {[%emt 0:01:39]} Ng7 {[%emt 0:00:54]} 18. Qg4 {[%emt 0:00:56]} Kh8 {[%emt 0:00:30]} 19. h5 {[%emt 0:01:36]} f5 {[%emt 0:01:09]} 20. Qg3 {[%emt 0:00:48]} Bd6 {[%emt 0:00:39]} 21. h6 {[%emt 0:00:19]} Ne8 {[%emt 0:01:26]} 22. Re1 {[%emt 0:01:49]} Qf6 {[%emt 0:00:43]} 23. Nb5 {[%emt 0:02:02]} Rg8 {[%emt 0:02:02]} 24. Qh4 {[%emt 0:02:17]} Qxh4 {[%emt 0:00:43]} 25. Rxh4 {[%emt 0:00:30]} Bc5 {[%emt 0:00:56]} 26. Re2 {[%emt 0:00:52]} f6 {[%emt 0:01:03]} 27. c3 {[%emt 0:00:57]} a6 {[%emt 0:00:51]} 28. Na3 {[%emt 0:02:38]} Bxa3 {[%emt 0:00:22]} 29. bxa3 {[%emt 0:01:56]} Nd6 {[%emt 0:00:32]} 30. d4 {[%emt 0:01:28]} e4 {[%emt 0:00:50]} 31. Bh5 {[%emt 0:01:33]} Rxg2 {[%emt 0:00:32]} 32. Kd2 {[%emt 0:02:17]} Nc4+ {[%emt 0:00:21]} 33. Kc2 {[%emt 0:01:19]} Rb8 {[%emt 0:00:14]} 34. Rh1 {[%emt 0:02:56]} Rb2+ {[%emt 0:00:27]} 35. Kc1 {[%emt 0:00:45]} Rxf2 {[%emt 0:00:59]} 36. Rxf2 {[%emt 0:00:50]} Rxf2 {[%emt 0:00:20]} 37. Rd1 {[%emt 0:02:12]} Nxa3 {[%emt 0:00:45]} 38. Re1 {[%emt 0:00:24]} Rh2 {[%emt 0:00:50]} 39. Bd1 {[%emt 0:00:22]} Rxh6 {[%emt 0:00:35]} 40. Kb2 {[%emt 0:00:15]} Nb5 {[%emt 0:00:46]} 41. Ba4 {[%emt 0:00:10]} Rh2+ {[%emt 0:00:25]} 42. Kb3 {[%emt 0:00:07]} Rd2 {[%emt 0:01:32]} 43. Kc4 {[%emt 0:00:19]} Rd3 {[%emt 0:01:03]} 44. Rc1 {[%emt 0:00:20]} Rg3 {[%emt 0:01:06]} 45. Bxb5 {[%emt 0:00:07]} axb5+ {[%emt 0:00:11]} 46. Kxb5 {[%emt 0:00:03]} e3 {[%emt 0:00:29]} 47. Kc6 {[%emt 0:00:04]} e2 {[%emt 0:00:13]} 48. Kxc7 {[%emt 0:00:03]} Rxc3+ {[%emt 0:00:17]} 49. Rxc3 {[%emt 0:00:02]} e1=Q {[%emt 0:00:19]} 50. Rc6 {[%emt 0:00:04]} Qa5+ {[%emt 0:00:13]} 51. Kd6 {[%emt 0:00:09]} Qb4+ {[%emt 0:00:28]} 52. Ke6 {[%emt 0:00:15]} Qxd4 {[%emt 0:00:30]} 53. d6 {[%emt 0:00:06]} Qe4+ {[%emt 0:00:51]} 54. Kxf6 {[%emt 0:00:09]} Qxc6 {[%emt 0:00:15]} 55. Ke7 {[%emt 0:00:01]} f4 {[%emt 0:00:29]} 56. d7 {[%emt 0:00:01]} Qxd7+ {[%emt 0:00:11]} 57. Kxd7 {[%emt 0:00:03]} f3 {[%emt 0:00:06]} 58. Ke7 {[%emt 0:00:03]} f2 {[%emt 0:00:08]} 59. Kf6 {[%emt 0:00:06]} f1=Q+ {[%emt 0:00:14]} 60. Kg5 {[%emt 0:00:05]} Qf3 {[%emt 0:00:33]} 61. Kh6 {[%emt 0:00:03]} Qg3 {[%emt 0:00:41]} 62. Kh5 {[%emt 0:00:02]} Kg8 {[%emt 0:00:41]} 0-1

[Event "DVM U10 2024"]
[Site "Duesseldorf"]
[Date "2024.12.29"]
[Round "7"]
[White "Städler, Jannis"]
[Black "Torgoev, Timur"]
[Result "0-1"]
[ECO "C68"]
[WhiteElo "1082"]
[BlackElo "1153"]
[Annotator "NA"]
[PlyCount "66"]
[EventDate "2024.12.23"]
[EventType "team-tourn"]
[EventRounds "7"]
[EventCountry "GER"]
[SourceTitle "playchess.com"]
[Source "ChessBase"]
[SourceQuality "1"]
[TimeControl "3300+5"]

1. e4 {[%emt 0:00:01]} e5 {[%emt 0:00:06]} 2. Nf3 {[%emt 0:00:07]} Nc6 {[%emt 0:00:06]} 3. Bb5 {[%emt 0:00:09]} a6 {[%emt 0:00:31]} 4. Bxc6 {[%emt 0:00:07]} dxc6 {[%emt 0:00:07]} 5. Nxe5 {[%emt 0:00:11]} Qd4 {[%emt 0:00:57]} 6. Ng4 {[%emt 0:00:18]} Qxe4+ {[%emt 0:00:35]} 7. Ne3 {[%emt 0:00:12]} Bc5 {[%emt 0:00:41]} 8. O-O {[%emt 0:00:28]} Nf6 {[%emt 0:00:42]} 9. Nc3 {[%emt 0:00:10]} Qe7 {[%emt 0:00:46]} 10. d4 {[%emt 0:00:15]} Bd6 {[%emt 0:00:46]} 11. Nc4 {[%emt 0:00:19]} O-O {[%emt 0:00:02]} 12. Re1 {[%emt 0:00:53]} Qd8 {[%emt 0:00:28]} 13. Bg5 {[%emt 0:00:15]} Be6 {[%emt 0:00:18]} 14. Qd3 {[%emt 0:01:07]} b5 {[%emt 0:00:45]} 15. Ne3 {[%emt 0:01:49]} h6 {[%emt 0:00:22]} 16. Bh4 {[%emt 0:01:18]} b4 {[%emt 0:01:40]} 17. Ne4 {[%emt 0:00:15]} Bf4 {[%emt 0:00:41]} 18. Nxf6+ {[%emt 0:00:21]} gxf6 {[%emt 0:00:15]} 19. c4 {[%emt 0:01:56]} bxc3 {[%emt 0:00:27]} 20. bxc3 {[%emt 0:00:16]} Bg5 {[%emt 0:00:20]} 21. Nf5 {[%emt 0:01:33]} Bxf5 {[%emt 0:00:36]} 22. Qxf5 {[%emt 0:00:09]} Bxh4 {[%emt 0:00:09]} 23. Re4 {[%emt 0:00:30]} Bg5 {[%emt 0:00:19]} 24. h4 {[%emt 0:00:48]} Bd2 {[%emt 0:00:24]} 25. Rg4+ {[%emt 0:00:51]} Kh8 {[%emt 0:00:37]} 26. Qh5 {[%emt 0:00:15]} Rg8 {[%emt 0:00:48]} 27. Re4 {[%emt 0:04:06]} Qd5 {[%emt 0:00:52]} 28. Qf3 {[%emt 0:02:16]} Rae8 {[%emt 0:01:18]} 29. Qxf6+ {[%emt 0:00:23]} Kh7 {[%emt 0:00:45]} 30. f3 {[%emt 0:02:05]} Rxe4 {[%emt 0:00:30]} 31. fxe4 {[%emt 0:00:06]} Qxe4 {[%emt 0:00:19]} 32. g4 {[%emt 0:01:48]} Rxg4+ {[%emt 0:00:22]} 33. Kf2 {[%emt 0:00:39]} Qg2# {[%emt 0:00:13]} 0-1

[Event "DVM U10 2024"]
[Site "Duesseldorf"]
[Date "2024.12.29"]
[Round "7"]
[White "Schacht, Jakob Otto"]
[Black "Chen, Aimée"]
[Result "1-0"]
[ECO "C45"]
[WhiteElo "1064"]
[BlackElo "1090"]
[Annotator "NA"]
[PlyCount "149"]
[EventDate "2024.12.23"]
[EventType "team-tourn"]
[EventRounds "7"]
[EventCountry "GER"]
[SourceTitle "playchess.com"]
[Source "ChessBase"]
[SourceQuality "1"]
[TimeControl "3300+5"]

1. e4 {[%emt 0:00:01]} e5 {[%emt 0:00:08]} 2. Nf3 {[%emt 0:00:09]} Nc6 {[%emt 0:00:06]} 3. d4 {[%emt 0:00:10]} exd4 {[%emt 0:00:11]} 4. Nxd4 {[%emt 0:00:07]} Nxd4 {[%emt 0:00:08]} 5. Qxd4 {[%emt 0:00:08]} d6 {[%emt 0:00:49]} 6. Nc3 {[%emt 0:00:33]} Nf6 {[%emt 0:00:11]} 7. Bc4 {[%emt 0:00:29]} Be7 {[%emt 0:00:33]} 8. Bf4 {[%emt 0:01:36]} O-O {[%emt 0:00:13]} 9. O-O-O {[%emt 0:00:22]} Be6 {[%emt 0:01:33]} 10. h4 {[%emt 0:02:45]} Nh5 {[%emt 0:10:01]} 11. Be3 {[%emt 0:02:05]} Bf6 {[%emt 0:01:38]} 12. Qd3 {[%emt 0:01:18]} Bxc3 {[%emt 0:02:08]} 13. Qxc3 {[%emt 0:00:18]} c6 {[%emt 0:02:46]} 14. Be2 {[%emt 0:01:01]} Nf6 {[%emt 0:01:20]} 15. f3 {[%emt 0:01:49]} h6 {[%emt 0:00:55]} 16. g4 {[%emt 0:00:17]} a5 {[%emt 0:02:21]} 17. g5 {[%emt 0:00:25]} hxg5 {[%emt 0:00:27]} 18. hxg5 {[%emt 0:00:09]} Nd7 {[%emt 0:00:38]} 19. Rh2 {[%emt 0:00:50]} Re8 {[%emt 0:01:21]} 20. Rdh1 {[%emt 0:01:15]} Kf8 {[%emt 0:00:48]} 21. f4 {[%emt 0:06:13]} Nc5 {[%emt 0:03:00]} 22. Bxc5 {[%emt 0:00:50]} Ke7 {[%emt 0:01:38]} 23. Be3 {[%emt 0:00:24]} Rg8 {[%emt 0:01:20]} 24. f5 {[%emt 0:02:38]} Bc8 {[%emt 0:01:12]} 25. f6+ {[%emt 0:00:00]} gxf6 {[%emt 0:00:11]} 26. Qxf6+ {[%emt 0:00:00]} Ke8 {[%emt 0:02:06]} 27. Qxd8+ {[%emt 0:00:01]} Kxd8 {[%emt 0:00:07]} 28. Rh8 {[%emt 0:00:20]} Rxh8 {[%emt 0:00:12]} 29. Rxh8+ {[%emt 0:00:05]} Ke7 {[%emt 0:00:11]} 30. Bc4 {[%emt 0:00:30]} b5 {[%emt 0:00:27]} 31. Be2 {[%emt 0:00:31]} Bb7 {[%emt 0:00:17]} 32. Rxa8 {[%emt 0:00:30]} Bxa8 {[%emt 0:00:05]} 33. Kd2 {[%emt 0:00:10]} c5 {[%emt 0:00:15]} 34. Bxb5 {[%emt 0:00:14]} Bxe4 {[%emt 0:00:07]} 35. Kc3 {[%emt 0:00:39]} Kd8 {[%emt 0:00:19]} 36. Bc4 {[%emt 0:00:18]} Bg6 {[%emt 0:00:17]} 37. Bf4 {[%emt 0:00:20]} Kc7 {[%emt 0:00:24]} 38. Kb3 {[%emt 0:00:26]} Kc6 {[%emt 0:00:23]} 39. c3 {[%emt 0:00:10]} d5 {[%emt 0:00:43]} 40. Be2 {[%emt 0:00:18]} Kb6 {[%emt 0:02:02]} 41. Be3 {[%emt 0:00:47]} Bb1 {[%emt 0:01:11]} 42. Bh5 {[%emt 0:00:51]} Bg6 {[%emt 0:00:18]} 43. Bxg6 {[%emt 0:00:07]} fxg6 {[%emt 0:00:06]} 44. Kc2 {[%emt 0:00:12]} Kc6 {[%emt 0:00:44]} 45. Kd3 {[%emt 0:00:12]} Kd6 {[%emt 0:00:26]} 46. Ke2 {[%emt 0:00:11]} c4 {[%emt 0:00:15]} 47. b3 {[%emt 0:00:27]} Ke5 {[%emt 0:00:52]} 48. Bb6 {[%emt 0:00:34]} Kf5 {[%emt 0:00:29]} 49. Bxa5 {[%emt 0:00:07]} Kxg5 {[%emt 0:00:09]} 50. Bb6 {[%emt 0:00:17]} Kf4 {[%emt 0:00:17]} 51. bxc4 {[%emt 0:00:10]} dxc4 {[%emt 0:00:14]} 52. a4 {[%emt 0:00:10]} Ke5 {[%emt 0:00:36]} 53. a5 {[%emt 0:00:07]} Kd5 {[%emt 0:00:19]} 54. Kd2 {[%emt 0:00:35]} g5 {[%emt 0:00:11]} 55. Kc2 {[%emt 0:00:09]} Kc6 {[%emt 0:00:12]} 56. Kb2 {[%emt 0:00:18]} Kb5 {[%emt 0:00:17]} 57. Kc2 {[%emt 0:00:31]} g4 {[%emt 0:00:26]} 58. Kd2 {[%emt 0:00:17]} g3 {[%emt 0:00:33]} 59. Ke2 {[%emt 0:01:00]} g2 {[%emt 0:00:00]} 60. Kf2 {[%emt 0:00:06]} g1=Q+ 61. Kxg1 Ka6 {[%emt 0:00:16]} 62. Kf2 {[%emt 0:00:16]} Kb5 {[%emt 0:00:28]} 63. Ke3 {[%emt 0:00:14]} Ka6 {[%emt 0:00:07]} 64. Ke4 {[%emt 0:00:19]} Kb5 {[%emt 0:00:21]} 65. Kd4 {[%emt 0:00:08]} Ka6 {[%emt 0:00:06]} 66. Kxc4 {[%emt 0:00:10]} Kb7 {[%emt 0:00:12]} 67. Kb5 {[%emt 0:00:20]} Ka8 {[%emt 0:00:04]} 68. c4 {[%emt 0:00:08]} Kb8 {[%emt 0:00:15]} 69. Ka6 {[%emt 0:00:38]} Ka8 {[%emt 0:00:09]} 70. c5 {[%emt 0:00:14]} Kb8 {[%emt 0:00:06]} 71. Bd8 {[%emt 0:00:42]} Ka8 {[%emt 0:00:06]} 72. c6 {[%emt 0:00:14]} Kb8 {[%emt 0:00:12]} 73. c7+ {[%emt 0:00:55]} Kc8 {[%emt 0:00:05]} 74. Kb6 {[%emt 0:00:37]} Kd7 {[%emt 0:00:07]} 75. Kb7 {[%emt 0:00:13]} 1-0

[Event "DVM U10 2024"]
[Site "Duesseldorf"]
[Date "2024.12.29"]
[Round "7"]
[White "Bauta, Luan"]
[Black "Bashirova, Sona"]
[Result "0-1"]
[ECO "B13"]
[WhiteElo "1063"]
[BlackElo "1626"]
[Annotator "NA"]
[PlyCount "76"]
[EventDate "2024.12.23"]
[EventType "team-tourn"]
[EventRounds "7"]
[EventCountry "GER"]
[SourceTitle "playchess.com"]
[Source "ChessBase"]
[SourceQuality "1"]
[TimeControl "3300+5"]

1. e4 {[%emt 0:00:01]} c6 {[%emt 0:00:06]} 2. d4 {[%emt 0:00:07]} d5 {[%emt 0:00:06]} 3. exd5 {[%emt 0:00:07]} cxd5 {[%emt 0:00:04]} 4. Nf3 {[%emt 0:00:23]} Nf6 {[%emt 0:00:16]} 5. Nc3 {[%emt 0:00:09]} Bg4 {[%emt 0:00:08]} 6. Be2 {[%emt 0:00:09]} e6 {[%emt 0:00:46]} 7. h3 {[%emt 0:00:19]} Bxf3 {[%emt 0:00:31]} 8. Bxf3 {[%emt 0:00:08]} Nc6 {[%emt 0:00:05]} 9. O-O {[%emt 0:00:19]} Be7 {[%emt 0:00:38]} 10. Bg5 {[%emt 0:00:17]} O-O {[%emt 0:00:21]} 11. Bxf6 {[%emt 0:00:07]} Bxf6 {[%emt 0:00:08]} 12. Ne2 {[%emt 0:00:28]} Qb6 {[%emt 0:00:52]} 13. c3 {[%emt 0:01:46]} Qxb2 {[%emt 0:05:13]} 14. Rb1 {[%emt 0:00:14]} Qxa2 {[%emt 0:00:08]} 15. Rxb7 {[%emt 0:00:05]} Qa6 {[%emt 0:01:03]} 16. Rb1 {[%emt 0:00:33]} Rab8 {[%emt 0:03:54]} 17. Qd2 {[%emt 0:00:28]} Rxb1 {[%emt 0:01:02]} 18. Rxb1 {[%emt 0:00:07]} Rc8 {[%emt 0:00:13]} 19. Re1 {[%emt 0:01:35]} Qc4 {[%emt 0:05:25]} 20. Nf4 {[%emt 0:00:59]} Ne7 {[%emt 0:01:36]} 21. Qd3 {[%emt 0:03:26]} Qxd3 {[%emt 0:03:39]} 22. Nxd3 {[%emt 0:00:16]} Rxc3 {[%emt 0:00:07]} 23. Nf4 {[%emt 0:01:17]} h6 {[%emt 0:00:25]} 24. Ra1 {[%emt 0:01:34]} Bxd4 {[%emt 0:02:42]} 25. Re1 {[%emt 0:00:10]} Rc2 {[%emt 0:01:03]} 26. Rf1 {[%emt 0:00:16]} Nf5 {[%emt 0:00:17]} 27. Kh2 {[%emt 0:01:01]} Bxf2 {[%emt 0:01:01]} 28. Ne2 {[%emt 0:02:00]} Bh4 {[%emt 0:01:13]} 29. g3 {[%emt 0:05:36]} Nxg3 {[%emt 0:00:50]} 30. Rf2 {[%emt 0:02:23]} d4 {[%emt 0:01:56]} 31. Kg2 {[%emt 0:01:16]} Nxe2 {[%emt 0:00:32]} 32. Rxe2 {[%emt 0:00:10]} d3 {[%emt 0:00:09]} 33. Rxc2 {[%emt 0:00:41]} dxc2 {[%emt 0:00:06]} 34. Kh2 {[%emt 0:00:12]} c1=Q {[%emt 0:00:17]} 35. Bg2 {[%emt 0:00:04]} Qf4+ {[%emt 0:00:34]} 36. Kh1 {[%emt 0:00:10]} Bg3 {[%emt 0:00:26]} 37. Kg1 {[%emt 0:00:16]} Qf2+ {[%emt 0:00:13]} 38. Kh1 {[%emt 0:00:12]} Qe1+ {[%emt 0:00:06]} 0-1

[Event "DVM U10 2024"]
[Site "Duesseldorf"]
[Date "2024.12.29"]
[Round "7"]
[White "Müller, Charlie Erik"]
[Black "Mätz, Mark"]
[Result "1-0"]
[ECO "B32"]
[WhiteElo "1043"]
[BlackElo "767"]
[Annotator "NA"]
[PlyCount "151"]
[EventDate "2024.12.23"]
[EventType "team-tourn"]
[EventRounds "7"]
[EventCountry "GER"]
[SourceTitle "playchess.com"]
[Source "ChessBase"]
[SourceQuality "1"]
[TimeControl "3300+5"]

1. e4 {[%emt 0:00:01]} c5 {[%emt 0:00:06]} 2. Nf3 {[%emt 0:00:10]} Nc6 {[%emt 0:00:05]} 3. Nc3 {[%emt 0:00:14]} Nf6 {[%emt 0:00:09]} 4. d4 {[%emt 0:00:29]} cxd4 {[%emt 0:00:07]} 5. Nxd4 {[%emt 0:00:04]} Nxd4 {[%emt 0:00:10]} 6. Qxd4 {[%emt 0:00:09]} d6 {[%emt 0:00:16]} 7. Qa4+ {[%emt 0:00:33]} Bd7 {[%emt 0:00:15]} 8. Bb5 {[%emt 0:00:08]} e5 {[%emt 0:00:18]} 9. Bxd7+ {[%emt 0:00:16]} Nxd7 {[%emt 0:00:17]} 10. O-O {[%emt 0:00:19]} Be7 {[%emt 0:00:15]} 11. Qc4 {[%emt 0:00:54]} O-O {[%emt 0:01:14]} 12. Qe2 {[%emt 0:00:46]} Nf6 {[%emt 0:00:33]} 13. Qf3 {[%emt 0:02:09]} Re8 {[%emt 0:00:33]} 14. Re1 {[%emt 0:00:38]} Qd7 {[%emt 0:00:56]} 15. Bg5 {[%emt 0:00:32]} Qg4 {[%emt 0:00:52]} 16. Qxg4 {[%emt 0:01:23]} Nxg4 {[%emt 0:00:12]} 17. Bxe7 {[%emt 0:00:08]} Rxe7 {[%emt 0:00:20]} 18. Nd5 {[%emt 0:00:14]} Rd7 {[%emt 0:00:28]} 19. h3 {[%emt 0:00:25]} Nh6 {[%emt 0:00:26]} 20. Rad1 {[%emt 0:00:18]} Rad8 {[%emt 0:00:33]} 21. Re3 {[%emt 0:00:41]} f5 {[%emt 0:00:37]} 22. exf5 {[%emt 0:01:04]} Nxf5 {[%emt 0:00:22]} 23. Rf3 {[%emt 0:01:01]} Rf8 {[%emt 0:01:07]} 24. c3 {[%emt 0:02:38]} e4 {[%emt 0:01:11]} 25. Rf4 {[%emt 0:00:38]} Ne7 {[%emt 0:01:21]} 26. Rxe4 {[%emt 0:00:42]} Nxd5 {[%emt 0:00:11]} 27. Rxd5 {[%emt 0:00:08]} Rfd8 {[%emt 0:00:35]} 28. b3 {[%emt 0:01:06]} Rc7 {[%emt 0:00:19]} 29. c4 {[%emt 0:00:11]} b6 {[%emt 0:00:23]} 30. a4 {[%emt 0:01:00]} a6 {[%emt 0:00:34]} 31. b4 {[%emt 0:00:41]} h6 {[%emt 0:00:33]} 32. a5 {[%emt 0:00:51]} bxa5 {[%emt 0:00:25]} 33. bxa5 {[%emt 0:00:48]} Kh7 {[%emt 0:00:50]} 34. Rd3 {[%emt 0:01:06]} Rcd7 {[%emt 0:00:26]} 35. Kh2 {[%emt 0:00:22]} d5 {[%emt 0:00:21]} 36. Rxd5 {[%emt 0:00:12]} Rxd5 {[%emt 0:00:11]} 37. cxd5 {[%emt 0:00:12]} Rxd5 {[%emt 0:00:05]} 38. Ra4 {[%emt 0:00:10]} g5 {[%emt 0:00:19]} 39. g4 {[%emt 0:00:48]} Kg6 {[%emt 0:00:16]} 40. f3 {[%emt 0:00:12]} h5 {[%emt 0:00:25]} 41. Kg3 {[%emt 0:00:26]} h4+ {[%emt 0:00:20]} 42. Kf2 {[%emt 0:00:49]} Kf6 {[%emt 0:00:14]} 43. f4 {[%emt 0:00:18]} Rc5 {[%emt 0:00:26]} 44. fxg5+ {[%emt 0:00:56]} Kxg5 {[%emt 0:00:16]} 45. Ra3 {[%emt 0:00:18]} Kf6 {[%emt 0:00:11]} 46. Kf3 {[%emt 0:00:25]} Ke5 {[%emt 0:00:26]} 47. Re3+ {[%emt 0:01:31]} Kf6 {[%emt 0:00:15]} 48. Ra3 {[%emt 0:00:37]} Ke6 {[%emt 0:00:29]} 49. Kf4 {[%emt 0:00:23]} Kf6 {[%emt 0:00:23]} 50. Kf3 {[%emt 0:01:33]} Ke6 {[%emt 0:00:30]} 51. Kf4 {[%emt 0:00:50]} Rc4+ {[%emt 0:00:15]} 52. Kg5 {[%emt 0:00:10]} Kd6 {[%emt 0:00:11]} 53. Rb3 {[%emt 0:00:29]} Rc5+ {[%emt 0:00:23]} 54. Kxh4 {[%emt 0:00:59]} Rxa5 {[%emt 0:00:24]} 55. g5 {[%emt 0:00:18]} Kc5 {[%emt 0:00:24]} 56. Rg3 {[%emt 0:00:18]} Rb5 {[%emt 0:00:17]} 57. g6 {[%emt 0:00:11]} Rb8 {[%emt 0:00:05]} 58. g7 {[%emt 0:00:05]} Rh8+ {[%emt 0:00:05]} 59. Kg5 {[%emt 0:00:05]} Kd6 {[%emt 0:00:05]} 60. Kg6 {[%emt 0:00:05]} Ke7 {[%emt 0:00:05]} 61. Rg4 {[%emt 0:00:05]} a5 {[%emt 0:00:05]} 62. Rh4 {[%emt 0:00:05]} Rg8 {[%emt 0:00:05]} 63. Rh8 {[%emt 0:00:05]} Rxh8 {[%emt 0:00:05]} 64. gxh8=Q {[%emt 0:00:05]} a4 {[%emt 0:03:21]} 65. Qa1 {[%emt 0:01:37]} a3 {[%emt 0:00:00]} 66. Qxa3+ {[%emt 0:00:06]} Ke6 {[%emt 0:00:00]} 67. Qa5 {[%emt 0:00:15]} Kd6 {[%emt 0:00:00]} 68. Kf5 {[%emt 0:00:08]} Kc6 {[%emt 0:00:00]} 69. Ke4 {[%emt 0:00:06]} Kd6 {[%emt 0:00:00]} 70. Qd5+ {[%emt 0:00:17]} Kc7 {[%emt 0:00:00]} 71. Qe6 {[%emt 0:00:08]} Kb7 {[%emt 0:00:00]} 72. Kd5 {[%emt 0:00:08]} Kc7 {[%emt 0:00:00]} 73. Qc6+ {[%emt 0:00:06]} Kb8 {[%emt 0:00:00]} 74. Qd7 {[%emt 0:00:16]} Ka8 {[%emt 0:00:00]} 75. Kc6 {[%emt 0:00:05]} Kb8 {[%emt 0:00:00]} 76. Qb7# {[%emt 0:00:01]} 1-0

[Event "DVM U10 2024"]
[Site "Duesseldorf"]
[Date "2024.12.29"]
[Round "7"]
[White "Satheesh, Yazhini"]
[Black "Wüstenberg, Jan"]
[Result "1-0"]
[ECO "B50"]
[WhiteElo "1023"]
[BlackElo "1221"]
[Annotator "NA"]
[PlyCount "73"]
[EventDate "2024.12.23"]
[EventType "team-tourn"]
[EventRounds "7"]
[EventCountry "GER"]
[SourceTitle "playchess.com"]
[Source "ChessBase"]
[SourceQuality "1"]
[TimeControl "3300+5"]

1. e4 {[%emt 0:00:02]} c5 {[%emt 0:00:07]} 2. Nc3 {[%emt 0:00:13]} d6 {[%emt 0:00:08]} 3. Nf3 {[%emt 0:00:22]} Nf6 {[%emt 0:00:05]} 4. Bb5+ {[%emt 0:00:45]} Nbd7 {[%emt 0:01:18]} 5. d3 {[%emt 0:00:49]} a6 {[%emt 0:00:08]} 6. Ba4 {[%emt 0:00:32]} b5 {[%emt 0:00:14]} 7. Bb3 {[%emt 0:00:23]} Bb7 {[%emt 0:00:37]} 8. a3 {[%emt 0:01:21]} e6 {[%emt 0:00:36]} 9. O-O {[%emt 0:01:06]} Be7 {[%emt 0:00:17]} 10. Bg5 {[%emt 0:01:08]} h6 {[%emt 0:00:08]} 11. Be3 {[%emt 0:01:53]} Qc7 {[%emt 0:00:27]} 12. Re1 {[%emt 0:02:04]} d5 {[%emt 0:00:08]} 13. exd5 {[%emt 0:01:43]} exd5 {[%emt 0:00:11]} 14. Bd2 {[%emt 0:01:26]} O-O {[%emt 0:00:17]} 15. Rxe7 {[%emt 0:02:43]} Qd6 {[%emt 0:00:43]} 16. Re1 {[%emt 0:04:03]} Rfe8 {[%emt 0:00:24]} 17. Rxe8+ {[%emt 0:01:53]} Rxe8 {[%emt 0:00:11]} 18. Rb1 {[%emt 0:02:35]} Ng4 {[%emt 0:00:17]} 19. h3 {[%emt 0:04:08]} d4 {[%emt 0:00:26]} 20. hxg4 {[%emt 0:07:19]} dxc3 {[%emt 0:00:19]} 21. Bxc3 {[%emt 0:00:59]} Nf6 {[%emt 0:00:31]} 22. Nh2 {[%emt 0:02:16]} Qc6 {[%emt 0:00:15]} 23. Qf3 {[%emt 0:01:24]} Qd7 {[%emt 0:01:22]} 24. Qg3 {[%emt 0:00:40]} c4 {[%emt 0:02:17]} 25. dxc4 {[%emt 0:00:50]} bxc4 {[%emt 0:00:28]} 26. Bxc4 {[%emt 0:01:23]} Ne4 {[%emt 0:00:08]} 27. Qh3 {[%emt 0:00:53]} Qc6 {[%emt 0:00:32]} 28. Bb3 {[%emt 0:01:30]} Ng5 {[%emt 0:00:13]} 29. Qg3 {[%emt 0:01:56]} Ne4 {[%emt 0:00:23]} 30. Qf3 {[%emt 0:00:33]} Qc7 {[%emt 0:00:36]} 31. Qh3 {[%emt 0:00:48]} Qc6 {[%emt 0:00:16]} 32. Nf3 {[%emt 0:00:36]} Ng5 {[%emt 0:01:50]} 33. Nxg5 {[%emt 0:00:10]} hxg5 {[%emt 0:00:09]} 34. Qg3 {[%emt 0:03:18]} Kh8 {[%emt 0:04:43]} 35. Bxf7 {[%emt 0:00:00]} Rf8 {[%emt 0:03:30]} 36. Qh3+ {[%emt 0:00:00]} Qh6 {[%emt 0:00:13]} 37. Qxh6# {[%emt 0:00:33]} 1-0